bitfinex-derivatives/quotes_SOLF0:USTF0_20251216
["timestamp","ask_amount","ask_price","bid_price","bid_amount"]
[1765920698542,3.08,128.46,128.41,109.0483]
[1765920699538,0.05105678,128.45,128.43,7.0088]
[1765920699842,3.13105678,128.45,128.43,7.0088]
[1765920709953,3.13105678,128.45,128.42,0.0588664]
[1765920710152,3.08,128.44,128.42,0.0588664]
[1765920710646,6.72128561,128.43,128.42,0.0588664]
[1765920711052,3.08,128.4,128.35,109.0934]
[1765920711249,3.08,128.4,128.34,109.1022]
[1765920711748,3.08,128.4,128.37,7.0125]
[1765920711947,3.13457089,128.4,128.37,7.06946125]
[1765920712955,3.08,128.39,128.37,0.05696125]
[1765920717356,5.41167335,128.38,128.37,0.05696125]
[1765920720456,3.08,128.38,128.37,7.06946125]
[1765920720662,3.08,128.39,128.37,7.06946125]
[1765920722361,0.05457089,128.4,128.39,7.0114]
[1765920734372,3.39457089,128.4,128.39,7.0114]
[1765920743579,0.05457089,128.4,128.39,7.0114]
[1765920744585,3.34,128.45,128.43,7.0089]
[1765920744785,3.34,128.45,128.4,109.0572]
[1765920745384,3.34,128.45,128.44,7.0087]
[1765920745991,0.05936331,128.46,128.45,7.0081]
[1765920746186,3.39936331,128.46,128.45,7.0081]
[1765920753495,0.05936331,128.46,128.45,7.0081]
[1765920771311,69.37,128.51,128.44,66.08]
[1765920771511,3.27,128.5,128.45,109.0089]
[1765920771814,3.27,128.49,128.45,175.0889]
[1765920772310,3.27,128.49,128.46,0.0562527]
[1765920772515,0.05713003,128.48,128.46,0.0562527]
[1765920772719,3.32713003,128.48,128.47,7.0067]
[1765920774917,0.05713003,128.48,128.47,7.0067]
[1765920775719,3.32713003,128.48,128.47,7.0067]
[1765920779519,0.05713003,128.48,128.47,7.0067]
[1765920779720,3.32713003,128.48,128.47,7.0067]
[1765920779920,0.05713003,128.48,128.47,7.0067]
[1765920793423,3.32713003,128.48,128.47,7.0067]
[1765920800337,3.32713003,128.48,128.46,0.0562527]
[1765920810345,3.32713003,128.48,128.46,7.0637527]
[1765920813944,3.32713003,128.48,128.47,7.007]
[1765920822150,0.05713003,128.48,128.47,7.007]
[1765920839458,0.05713003,128.48,128.47,9.33331591]
[1765920842053,0.05713003,128.48,128.47,7.007]
[1765920842460,3.16713003,128.48,128.47,7.007]
[1765920845360,3.16713003,128.48,128.46,0.0562527]
[1765920845661,3.17,128.47,128.46,0.0562527]
[1765920846259,3.22713003,128.48,128.47,7.007]
[1765920846964,0.05713003,128.48,128.47,7.007]
[1765920857969,0.05713003,128.48,128.47,73.067]
[1765920858980,3.17,128.53,128.49,108.9808]
[1765920859867,0.0507384,128.52,128.51,7.0048]
[1765920862284,7.27182385,128.59,128.54,108.9353]
[1765920862476,6.9996,128.61,128.54,108.9353]
[1765920862477,9.59813976,128.61,128.55,108.9302]
[1765920862666,2.32631591,128.61,128.55,108.9302]
[1765920862868,2.32631591,128.61,128.58,7.0009]
[1765920863275,2.32631591,128.61,128.58,7.06085964]
[1765920863276,2.38248199,128.61,128.58,7.06085964]
[1765920864477,3.17,128.6,128.58,7.06085964]
[1765920866480,3.17,128.58,128.54,7.0032]
[1765920866682,3.17,128.56,128.54,7.0032]
[1765920867582,3.17,128.56,128.54,7.06293881]
[1765920867583,3.23006264,128.56,128.54,7.06293881]
[1765920868168,0.06006264,128.56,128.54,7.06293881]
[1765920869184,3.23006264,128.56,128.54,7.06293881]
[1765920869674,0.06006264,128.56,128.55,7.0027]
[1765920885897,3.29006264,128.56,128.55,7.0027]
[1765920887598,3.29006264,128.56,128.54,7.06293881]
[1765920909715,0.06006264,128.56,128.55,7.0027]
[1765920920030,3.40006264,128.56,128.55,7.0027]
[1765920920231,3.40006264,128.56,128.54,7.06283881]
[1765920922833,3.40006264,128.56,128.54,0.05973881]
[1765920923032,3.34,128.55,128.54,0.05973881]
[1765920923238,3.34,128.55,128.48,108.9871]
[1765920923427,3.34,128.54,128.5,7.0049]
[1765920924135,3.39192417,128.53,128.51,0.05144246]
[1765920926448,3.34,128.52,128.51,0.05144246]
[1765920926938,3.34,128.51,128.47,7.0066]
[1765920927138,3.34,128.5,128.47,7.0066]
[1765920927540,3.34,128.5,128.45,7.0078]
[1765920927541,3.34,128.49,128.45,7.0078]
[1765920927740,3.34,128.49,128.43,109.0288]
[1765920927940,3.39569163,128.47,128.45,0.05332638]
[1765920929647,3.39569163,128.47,128.46,7.0075]
[1765920930250,3.39569163,128.47,128.45,0.05332638]
[1765920931651,3.39569163,128.47,128.45,7.06142638]
[1765920936654,3.39569163,128.47,128.45,0.05332638]
[1765920938647,3.27,128.45,128.38,109.0725]
[1765920938951,3.27,128.45,128.39,109.0647]
[1765920939155,3.27,128.45,128.41,109.0493]
[1765920939743,0.05189119,128.44,128.43,7.0091]
[1765920940157,3.32189119,128.44,128.43,7.0091]
[1765920942553,3.32189119,128.44,128.42,0.05231174]
[1765920943361,3.32189119,128.44,128.42,7.06201174]
[1765920947664,3.32189119,128.44,128.42,0.05231174]
[1765920955370,3.32189119,128.44,128.42,7.06201174]
[1765920955567,0.05189119,128.44,128.42,0.05231174]
[1765920956574,0.05189119,128.44,128.43,7.0092]
[1765920964587,3.30189119,128.44,128.43,7.0092]
[1765920964881,0.05189119,128.44,128.43,7.0092]
[1765920965687,0.00189119,128.44,128.43,7.0092]
[1765920980203,3.25,128.5,128.46,109.0068]
[1765920981203,0.05344754,128.49,128.48,7.0065]
[1765920988110,0.05344754,128.49,128.47,0.05487752]
[1765920988111,3.30344754,128.49,128.47,0.05487752]
[1765920988813,3.30344754,128.49,128.47,7.06167752]
[1765920989616,3.25,128.48,128.47,7.06167752]
[1765920993015,3.25,128.48,128.47,0.05487752]
[1765920996410,3.25,128.48,128.47,7.06187752]
[1765920998727,3.15344754,128.49,128.48,7.0065]
[1765920999024,3.1,128.48,128.47,0.05487752]
[1765921005729,3.1,128.48,128.47,7.06187752]
[1765921006846,3.15344754,128.49,128.48,7.0065]
[1765921009346,0.05344754,128.49,128.48,7.0065]
[1765921028951,0.05344754,128.49,128.48,73.0865]
[1765921029756,3.1,128.53,128.51,7.0044]
[1765921030761,3.1,128.55,128.52,7.0043]
[1765921030960,3.15988562,128.55,128.52,7.05581525]
[1765921033063,0.05988562,128.55,128.52,0.05151525]
[1765921033863,0.05988562,128.55,128.54,7.0032]
[1765921052979,0.05988562,128.55,128.54,73.0432]
[1765921065581,3.12,128.6,128.56,108.9222]
[1765921065780,3.12,128.62,128.56,174.9622]
[1765921066169,3.12,128.62,128.59,7.0001]
[1765921066585,3.17260014,128.62,128.59,7.05065967]
[1765921070685,0.05260014,128.62,128.61,6.9994]
[1765921072282,3.17260014,128.62,128.61,6.9994]
[1765921074390,0.05260014,128.62,128.61,6.9994]
[1765921074688,3.17260014,128.62,128.61,6.9994]
[1765921075693,0.05260014,128.62,128.61,6.9994]
[1765921088597,3.36260014,128.62,128.61,6.9994]
[1765921089207,0.05260014,128.62,128.61,6.9994]
[1765921095900,0.05260014,128.62,128.61,73.0194]
[1765921105004,0.05260014,128.62,128.61,6.9994]
[1765921105210,0.05260014,128.62,128.61,73.0194]
[1765921106210,0.05260014,128.62,128.61,6.9994]
[1765921106399,0.05260014,128.62,128.61,73.0194]
[1765921107306,0.05260014,128.62,128.61,6.9994]
[1765921107510,0.05260014,128.62,128.61,73.0194]
[1765921108407,0.05260014,128.62,128.61,6.9994]
[1765921108805,0.05260014,128.62,128.61,73.0194]
[1765921109212,0.05260014,128.62,128.61,6.9994]
[1765921109412,0.05260014,128.62,128.61,73.0194]
[1765921110099,0.05260014,128.62,128.61,72.9994]
[1765921111924,3.36260014,128.62,128.61,6.9994]
[1765921112716,3.36260014,128.62,128.59,0.05055967]
[1765921112717,4.92260014,128.62,128.59,0.05055967]
[1765921112916,3.31,128.6,128.59,0.05055967]
[1765921113509,3.31,128.6,128.55,66.0]
[1765921113714,3.31,128.56,128.54,174.9341]
[1765921114517,3.36062419,128.56,128.54,175.01088086]
[1765921114704,3.36062419,128.56,128.55,7.0027]
[1765921114903,0.05062419,128.56,128.55,7.0027]
[1765921119917,3.16,128.62,128.6,6.9994]
[1765921120224,2.3242638,128.65,128.58,174.9228]
[1765921120415,3.16,128.64,128.59,108.8967]
[1765921121021,3.21585953,128.63,128.6,0.05038621]
[1765921121733,3.21585953,128.63,128.61,6.999]
[1765921121933,3.21585953,128.63,128.6,0.05038621]
[1765921124536,3.21585953,128.63,128.62,6.9988]
[1765921126537,3.16,128.62,128.6,0.05038621]
[1765921127540,3.16,128.62,128.61,6.9994]
[1765921128843,3.16,128.62,128.6,0.05038621]
[1765921129053,5.4842638,128.61,128.6,0.05038621]
[1765921131545,5.4842638,128.61,128.58,7.001]
[1765921131546,3.16,128.6,128.58,7.001]
[1765921131746,3.16,128.58,128.53,174.9625]
[1765921132541,3.16,128.58,128.56,7.0016]
[1765921132739,3.21286955,128.57,128.56,7.0016]
[1765921133238,0.05286955,128.57,128.56,7.0016]
[1765921141147,3.21286955,128.57,128.55,7.0026]
[1765921141346,3.21286955,128.57,128.54,0.05240985]
[1765921141552,0.05286955,128.57,128.54,108.98930985]
[1765921142653,0.05286955,128.57,128.56,7.0021]
[1765921163969,3.18286955,128.57,128.56,7.0021]
[1765921164162,0.05286955,128.57,128.56,7.0021]
[1765921165069,3.18286955,128.57,128.56,7.0021]
[1765921165265,3.18286955,128.57,128.54,7.05510985]
[1765921165570,3.13,128.55,128.54,7.05510985]
[1765921169174,3.631022,128.56,128.54,7.05510985]
[1765921169366,6.761022,128.56,128.54,7.05510985]
[1765921170868,3.13,128.55,128.54,7.05510985]
[1765921172173,3.18286955,128.57,128.54,7.05510985]
[1765921176278,3.09,128.56,128.54,7.05510985]
[1765921176581,6.721022,128.55,128.54,0.05240985]
[1765921176976,13.723722,128.55,128.54,0.05240985]
[1765921177280,3.09,128.54,128.51,7.0048]
[1765921178076,3.143026,128.54,128.51,7.05613358]
[1765921185285,3.09,128.53,128.51,0.05133358]
[1765921185476,6.721022,128.52,128.51,0.05133358]
[1765921186476,6.72635424,128.52,128.51,0.05133358]
[1765921186683,13.73065424,128.52,128.51,0.05133358]
[1765921187383,6.72635424,128.52,128.51,0.05133358]
[1765921192988,3.63635424,128.52,128.51,0.05133358]
[1765921193595,6.72635424,128.52,128.51,0.05133358]
[1765921194481,12.23471649,128.52,128.51,0.05133358]
[1765921194684,6.72635424,128.52,128.51,0.05133358]
[1765921194875,12.23471649,128.52,128.51,0.05133358]
[1765921195283,6.72635424,128.52,128.51,0.05133358]
[1765921195480,12.23471649,128.52,128.51,0.05133358]
[1765921195681,6.72635424,128.52,128.51,0.05133358]
[1765921195981,12.23471649,128.52,128.51,0.05133358]
[1765921196276,6.72635424,128.52,128.51,0.05133358]
[1765921196590,19.23901649,128.52,128.51,0.05133358]
[1765921196887,13.73065424,128.52,128.51,0.05133358]
[1765921197092,19.23901649,128.52,128.51,0.05133358]
[1765921197281,13.73065424,128.52,128.51,0.05133358]
[1765921197481,19.23901649,128.52,128.51,0.05133358]
[1765921197683,13.73065424,128.52,128.51,0.05133358]
[1765921197891,19.23901649,128.52,128.51,0.05133358]
[1765921198078,13.73065424,128.52,128.51,0.05133358]
[1765921198282,19.23901649,128.52,128.51,0.05133358]
[1765921198591,13.73065424,128.52,128.51,0.05133358]
[1765921198790,19.23901649,128.52,128.51,0.05133358]
[1765921198991,13.73065424,128.52,128.51,0.05133358]
[1765921199290,19.23901649,128.52,128.51,0.05133358]
[1765921199493,13.73065424,128.52,128.51,0.05133358]
[1765921199695,19.23901649,128.52,128.51,0.05133358]
[1765921199892,13.73065424,128.52,128.51,0.05133358]
[1765921200088,19.23901649,128.52,128.51,0.05133358]
[1765921200694,12.23471649,128.52,128.51,0.05133358]
[1765921204399,19.23901649,128.52,128.51,0.05133358]
[1765921205899,12.23471649,128.52,128.51,0.05133358]
[1765921207410,10.92520633,128.52,128.51,0.05133358]
[1765921214912,10.93313252,128.52,128.51,0.05133358]
[1765921223515,3.22,128.51,128.43,7.20972088]
[1765921223715,5.54684408,128.46,128.42,7.20972088]
[1765921224314,2.32684408,128.48,128.43,109.0322]
[1765921224518,5.47836446,128.47,128.44,109.08005798]
[1765921224827,0.05735078,128.47,128.44,109.08005798]
[1765921225120,0.05735078,128.47,128.44,110.64005798]
[1765921225722,0.05735078,128.47,128.46,7.0076]
[1765921225924,5.47405942,128.47,128.46,8.5676]
[1765921228024,5.47405942,128.47,128.46,7.0076]
[1765921228225,5.47405942,128.47,128.46,8.5676]
[1765921228524,5.47405942,128.47,128.46,7.0076]
[1765921228719,5.942e-05,128.48,128.46,8.5676]
[1765921229025,3.22,128.5,128.46,109.0048]
[1765921229823,0.05443646,128.49,128.48,7.0065]
[1765921237531,2.38128054,128.49,128.48,7.0065]
[1765921238433,3.23,128.48,128.47,0.05261956]
[1765921239430,5.61128054,128.49,128.47,0.05261956]
[1765921239631,2.38128054,128.49,128.47,0.05261956]
[1765921240432,2.38128054,128.49,128.48,7.0065]
[1765921245954,0.05443646,128.49,128.48,7.0065]
[1765921248951,3.28443646,128.49,128.48,7.0065]
[1765921250156,0.05443646,128.49,128.48,7.0065]
[1765921254360,3.28443646,128.49,128.48,7.0065]
[1765921255662,5.61195371,128.49,128.48,7.0065]
[1765921262164,2.38195371,128.49,128.48,7.0065]
[1765921265167,0.05443646,128.49,128.48,7.0065]
[1765921265560,3.40443646,128.49,128.48,7.0065]
[1765921281483,0.05443646,128.49,128.48,7.0065]
[1765921283283,7.24527579,128.53,128.52,7.0043]
[1765921283485,10.59527579,128.54,128.52,7.0043]
[1765921283677,10.59527579,128.54,128.49,108.9791]
[1765921283876,10.59527579,128.54,128.48,108.9835]
[1765921283877,7.24527579,128.54,128.51,108.9646]
[1765921284078,10.59527579,128.56,128.51,108.9646]
[1765921284275,0.05493896,128.54,128.51,109.01679819]
[1765921285282,0.05493896,128.54,128.51,175.11679819]
[1765921285479,0.05493896,128.54,128.53,7.0037]
[1765921286681,3.40493896,128.54,128.51,0.05219819]
[1765921286989,3.40493896,128.54,128.48,108.9835]
[1765921286990,3.35,128.51,128.46,3.17]
[1765921287178,6.9865743,128.49,128.46,3.17]
[1765921287388,6.9865743,128.49,128.47,10.1769]
[1765921287981,7.03736714,128.49,128.47,10.22737404]
[1765921292695,0.05079284,128.49,128.48,3.17]
[1765921301202,0.05079284,128.49,128.48,10.1765]
[1765921311408,0.00079284,128.49,128.48,10.1765]
[1765921315719,0.00079284,128.49,128.48,11.7365]
[1765921315916,0.00079284,128.49,128.48,10.1765]
[1765921316113,0.00079284,128.49,128.48,11.7365]
[1765921324218,0.00079284,128.49,128.48,35.1065]
[1765921324524,0.00079284,128.49,128.48,44.79715122]
[1765921327419,0.00079284,128.49,128.48,97.1065]
[1765921329131,0.00079284,128.49,128.48,106.79715122]
[1765921329525,0.00079284,128.49,128.48,109.12136455]
[1765921331135,0.00079284,128.49,128.48,99.43071333]
[1765921332935,0.00079284,128.49,128.48,109.12136455]
[1765921336536,9.284e-05,128.57,128.56,7.0021]
[1765921336737,9.284e-05,128.57,128.56,73.0621]
[1765921337833,9.284e-05,128.57,128.56,7.0021]
[1765921338942,7.129e-05,128.58,128.57,7.0016]
[1765921339127,1.333e-05,128.58,128.57,108.908]
[1765921340534,7.24527579,128.67,128.6,108.8869]
[1765921340730,1.333e-05,128.61,128.6,108.8869]
[1765921341235,14.24187579,128.67,128.63,3.5778]
[1765921341436,0.04983666,128.66,128.64,0.05654946]
[1765921341735,1.60983666,128.66,128.63,3.5778]
[1765921342340,2.32421333,128.64,128.63,3.5778]
[1765921342736,3.88421333,128.64,128.63,3.5778]
[1765921344338,3.88421333,128.64,128.62,7.04985686]
[1765921344542,2.32421333,128.64,128.62,0.05105686]
[1765921345636,2.32421333,128.64,128.63,6.9983]
[1765921346143,3.88421333,128.64,128.63,6.9983]
[1765921350948,3.88421333,128.64,128.62,0.05105686]
[1765921350949,3.88421333,128.64,128.62,7.04985686]
[1765921351246,2.32421333,128.64,128.62,7.04985686]
[1765921352848,2.32421333,128.64,128.62,10.15985686]
[1765921354449,2.32421333,128.64,128.62,7.04985686]
[1765921357851,2.32421333,128.64,128.62,0.05105686]
[1765921360248,2.32421333,128.64,128.62,7.04975686]
[1765921360456,2.32421333,128.64,128.62,3.16105686]
[1765921360750,2.32421333,128.64,128.63,6.9983]
[1765921361650,2.37404999,128.66,128.63,10.1083]
[1765921362558,2.37404999,128.66,128.64,6.9977]
[1765921363057,2.37404999,128.66,128.64,10.1077]
[1765921363244,2.37404999,128.66,128.65,10.1072]
[1765921363443,0.04983666,128.66,128.65,10.1072]
[1765921366664,7.24527579,128.71,128.65,6.9972]
[1765921366865,2.32421333,128.74,128.71,3.11]
[1765921367369,7.24527579,128.77,128.71,3.11]
[1765921367563,2.32421333,128.73,128.71,3.11]
[1765921367864,2.37621173,128.73,128.71,0.04940269]
[1765921368263,0.0519984,128.73,128.71,0.04940269]
[1765921368468,2.32421333,128.72,128.71,0.04940269]
[1765921389394,0.0519984,128.73,128.71,0.04940269]
[1765921391599,0.0519984,128.73,128.71,3.39940269]
[1765921392399,0.0519984,128.73,128.72,6.9934]
[1765921395400,0.0519984,128.73,128.72,10.3434]
[1765921429229,0.0519984,128.73,128.72,3.35]
[1765921429429,7.27744352,128.73,128.71,7.04330269]
[1765921430936,7.27744352,128.73,128.71,10.34330269]
[1765921432437,7.27744352,128.73,128.71,7.04330269]
[1765921432638,7.22544512,128.72,128.71,0.04940269]
[1765921432839,7.22544512,128.72,128.66,3.3]
[1765921433142,3.62217741,128.7,128.66,3.3]
[1765921433838,0.04949642,128.69,128.68,3.3]
[1765921434632,0.04949642,128.69,128.68,10.2955]
[1765921445946,0.04949642,128.69,128.67,3.2101736]
[1765921447745,0.04949642,128.69,128.67,0.0501736]
[1765921448644,7.04459642,128.69,128.67,0.0501736]
[1765921450147,0.04949642,128.69,128.67,0.0501736]
[1765921450348,0.04949642,128.69,128.67,3.2101736]
[1765921451540,0.04949642,128.69,128.67,10.2059736]
[1765921451936,0.04949642,128.69,128.67,0.0501736]
[1765921452540,7.04459642,128.69,128.67,0.0501736]
[1765921453141,0.04949642,128.69,128.67,3.2101736]
[1765921454553,0.04949642,128.69,128.67,10.2062736]
[1765921456754,0.04949642,128.69,128.68,3.16]
[1765921475361,7.29664625,128.69,128.68,3.16]
[1765921478854,7.29664625,128.69,128.68,10.1556]
[1765921489068,0.04949642,128.69,128.68,10.1556]
[1765921494568,0.04949642,128.69,128.67,0.0501736]
[1765921494760,7.2872194,128.68,128.67,3.3101736]
[1765921497476,7.2872194,128.68,128.67,10.3062736]
[1765921498568,7.33671582,128.69,128.68,3.26]
[1765921500183,7.33671582,128.69,128.68,10.2556]
[1765921500372,0.04949642,128.69,128.68,10.2556]
[1765921503477,0.04949642,128.69,128.68,3.26]
[1765921509682,0.04949642,128.69,128.67,3.4501736]
[1765921509980,7.33671582,128.69,128.67,3.4501736]
[1765921510579,14.33171582,128.69,128.67,3.4501736]
[1765921514791,6.9956,128.68,128.67,0.0501736]
[1765921514997,14.27134542,128.68,128.67,0.0501736]
[1765921515199,9.68750848,128.68,128.61,3.4]
[1765921515498,7.27505731,128.66,128.61,3.4]
[1765921515801,7.27505731,128.66,128.63,3.4]
[1765921516194,7.33296907,128.66,128.63,3.45523402]
[1765921516787,7.33296907,128.66,128.64,3.4]
[1765921518300,0.05791176,128.66,128.64,3.4]
[1765921519202,11.58750848,128.72,128.66,3.4]
[1765921519800,1.9,128.72,128.66,3.4]
[1765921520404,0.05955729,128.7,128.69,3.4]
[1765921521586,0.05955729,128.7,128.69,10.395]
[1765921532710,3.38,128.75,128.73,3.4]
[1765921533294,3.38,128.76,128.74,3.4]
[1765921533703,3.4393068,128.76,128.74,3.45842075]
[1765921536007,3.4393068,128.76,128.74,10.45062075]
[1765921543421,0.0593068,128.76,128.75,3.2]
[1765921543821,3.2793068,128.76,128.75,3.2]
[1765921545720,3.2793068,128.76,128.74,10.25062075]
[1765921548337,0.0593068,128.76,128.75,3.2]
[1765921550729,3.2793068,128.76,128.75,3.2]
[1765921551530,0.0593068,128.76,128.75,3.2]
[1765921551932,3.2793068,128.76,128.75,3.2]
[1765921564845,3.2793068,128.76,128.74,0.05842075]
[1765921564846,3.33,128.75,128.74,0.05842075]
[1765921565043,3.33,128.74,128.7,3.1]
[1765921566041,3.33,128.72,128.71,0.05477028]
[1765921566343,10.38001815,128.73,128.71,3.15477028]
[1765921566843,3.33,128.72,128.71,3.15477028]
[1765921569636,3.38711815,128.73,128.72,3.1]
[1765921569840,0.05711815,128.73,128.72,3.1]
[1765921570235,0.05711815,128.73,128.72,10.0934]
[1765921578756,0.05711815,128.73,128.72,3.1]
[1765921579154,3.38711815,128.73,128.71,10.14867028]
[1765921580160,3.38711815,128.73,128.72,3.1]
[1765921582050,3.38711815,128.73,128.71,0.05477028]
[1765921582961,10.38001815,128.73,128.71,0.05477028]
[1765921583159,5.64849484,128.72,128.71,0.05477028]
[1765921583661,19.90368404,128.72,128.71,0.05477028]
[1765921587663,12.64189484,128.72,128.71,0.05477028]
[1765921589166,3.33,128.72,128.71,0.05477028]
[1765921592566,3.33,128.71,128.67,3.1]
[1765921592770,3.33,128.68,128.65,3.1]
[1765921593075,5.64849484,128.71,128.65,3.1]
[1765921593268,5.64849484,128.71,128.67,6.9956]
[1765921593575,3.33,128.7,128.68,3.1]
[1765921593871,3.38108805,128.7,128.68,3.15144297]
[1765921594074,3.38108805,128.7,128.68,0.05144297]
[1765921595671,0.05108805,128.7,128.68,3.45144297]
[1765921596470,0.05108805,128.7,128.68,10.44684297]
[1765921596672,0.05108805,128.7,128.69,3.4]
[1765921600381,3.32108805,128.7,128.68,3.45144297]
[1765921600972,0.05108805,128.7,128.68,3.45144297]
[1765921605885,3.32108805,128.7,128.68,3.45144297]
[1765921614289,0.05108805,128.7,128.68,3.45144297]
[1765921614484,0.05108805,128.7,128.69,3.4]
[1765921615189,0.05108805,128.7,128.69,10.395]
[1765921621887,3.32108805,128.7,128.69,3.4]
[1765921622093,3.32108805,128.7,128.68,0.05144297]
[1765921622594,3.32108805,128.7,128.68,10.44704297]
[1765921626312,0.05108805,128.7,128.69,10.395]
[1765921628801,7.31299674,128.7,128.69,10.395]
[1765921629298,7.31299674,128.7,128.69,3.4]
[1765921640511,0.05108805,128.7,128.69,10.395]
[1765921640900,10.43190869,128.74,128.7,3.4]
[1765921641209,3.17,128.74,128.7,3.4]
[1765921641814,0.05506367,128.73,128.72,3.4]
[1765921642615,0.05506367,128.73,128.72,10.3929]
[1765921645107,7.26190869,128.77,128.75,3.4]
[1765921645414,10.43190869,128.77,128.75,3.4]
[1765921646110,3.22195128,128.77,128.75,3.45175771]
[1765921665224,3.22195128,128.77,128.75,0.05175771]
[1765921665528,7.03445302,128.76,128.75,0.05175771]
[1765921666323,14.02565302,128.76,128.75,0.05175771]
[1765921666525,3.41,128.75,128.71,3.34]
[1765921667629,3.41,128.75,128.72,3.38980763]
[1765921667630,0.05638086,128.74,128.72,3.38980763]
[1765921667821,3.46638086,128.74,128.72,3.38980763]
[1765921671034,3.41,128.73,128.72,3.38980763]
[1765921671234,3.41,128.73,128.72,0.04980763]
[1765921673337,10.4029,128.73,128.72,0.04980763]
[1765921673643,17.65587848,128.73,128.72,0.04980763]
[1765921674342,17.65587848,128.73,128.68,3.34]
[1765921674343,3.41,128.7,128.68,3.34]
[1765921675234,3.46145749,128.7,128.68,3.39885714]
[1765921676643,0.05145749,128.7,128.68,3.39885714]
[1765921678746,3.46145749,128.7,128.68,3.39885714]
[1765921681144,0.05145749,128.7,128.68,3.39885714]
[1765921683146,3.46145749,128.7,128.68,3.39885714]
[1765921686847,3.46145749,128.7,128.68,0.05885714]
[1765921687346,3.46145749,128.7,128.68,3.33885714]
[1765921701467,3.23,128.69,128.68,0.05885714]
[1765921703966,12.54490628,128.69,128.68,0.05885714]
[1765921706471,19.7939457,128.69,128.68,0.05885714]
[1765921707371,3.23,128.67,128.64,10.2777]
[1765921707574,2.31990628,128.66,128.65,3.28]
[1765921708564,5.54990628,128.66,128.64,7.04851076]
[1765921708764,5.54990628,128.66,128.64,10.32851076]
[1765921709167,3.23,128.65,128.64,0.05081076]
[1765921721376,10.52650467,128.67,128.64,3.39081076]
[1765921721579,0.05746525,128.67,128.64,3.39081076]
[1765921722482,3.27746525,128.67,128.64,3.39081076]
[1765921722682,3.27746525,128.67,128.65,10.3372]
[1765921724884,3.27746525,128.67,128.66,3.34]
[1765921732989,3.27746525,128.67,128.65,10.3372]
[1765921734292,3.27746525,128.67,128.65,6.9972]
[1765921735190,3.27746525,128.67,128.65,10.3372]
[1765921735985,3.27746525,128.67,128.64,0.05081076]
[1765921735986,10.27366525,128.67,128.64,0.05081076]
[1765921736190,5.53990628,128.66,128.64,0.05081076]
[1765921736489,3.22,128.65,128.64,0.05081076]
[1765921739389,10.2172,128.65,128.64,0.05081076]
[1765921742790,17.46623942,128.65,128.64,0.05081076]
[1765921748102,19.7882861,128.65,128.64,0.05081076]
[1765921750806,12.53924668,128.65,128.64,0.05081076]
[1765921752993,3.19,128.63,128.58,3.25]
[1765921753198,3.19,128.6,128.58,3.25]
[1765921753794,7.27109193,128.62,128.59,3.25]
[1765921754006,0.05720976,128.62,128.59,3.30608018]
[1765921755010,0.05720976,128.62,128.61,10.2494]
[1765921765413,76.27529566,128.66,128.64,3.25]
[1765921766221,65.82,128.66,128.65,10.2472]
[1765921766416,69.01,128.66,128.65,10.2472]
[1765921767619,65.82,128.66,128.65,10.2472]
[1765921769322,3.24527242,128.67,128.65,10.2472]
[1765921770021,3.24527242,128.67,128.66,3.25]
[1765921770314,3.24527242,128.67,128.65,6.9972]
[1765921770514,3.24527242,128.67,128.65,10.2472]
[1765921770917,10.51056808,128.67,128.65,10.2472]
[1765921776127,3.1,128.66,128.65,3.25]
[1765921776424,7.32056808,128.67,128.65,3.25]
[1765921776625,10.42056808,128.67,128.65,3.25]
[1765921778629,3.1,128.66,128.64,0.05385596]
[1765921778830,3.1,128.65,128.64,0.05385596]
[1765921779025,10.0972,128.65,128.64,0.05385596]
[1765921779232,23.41985895,128.65,128.64,0.05385596]
[1765921779424,13.72506971,128.65,128.64,0.05385596]
[1765921780128,23.41985895,128.65,128.64,0.05385596]
[1765921780616,16.42265895,128.65,128.58,10.4105]
[1765921780817,3.1,128.61,128.58,10.4105]
[1765921781228,3.1,128.61,128.59,3.41]
[1765921781729,3.14993511,128.61,128.59,3.46674558]
[1765921786328,3.1,128.6,128.59,0.05674558]
[1765921792234,10.4172955,128.61,128.59,3.46674558]
[1765921793034,3.1,128.6,128.59,3.46674558]
[1765921793234,3.1,128.6,128.59,0.05674558]
[1765921800551,3.1,128.6,128.59,3.46674558]